bitfinex-derivatives/quotes_SOLF0:USTF0_20220101
["timestamp","ask_amount","ask_price","bid_price","bid_amount"]
[1641025339275,4.0962088,173.06,172.99,19.57242133]
[1641025340275,4.09634587,173.05,172.99,19.57242133]
[1641025340673,31.76113587,173.05,172.99,19.57242133]
[1641025340875,27.66479,173.05,172.99,19.57242133]
[1641025341674,31.76113172,173.05,172.99,19.57242133]
[1641025341876,4.09634172,173.05,172.99,19.57242133]
[1641025342078,4.09634172,173.05,173.04,4.0]
[1641025342277,31.0024,173.09,173.04,9.511]
[1641025342476,32.85936813,173.13,173.04,9.511]
[1641025342675,60.52415813,173.13,173.05,30.9667]
[1641025343077,4.0956376,173.08,173.05,32.21674654]
[1641025343276,4.0956376,173.08,173.05,1.25004654]
[1641025343977,27.66479,173.13,173.04,37.17579]
[1641025344177,4.0953992,173.09,173.05,31.526]
[1641025344879,27.66479,173.13,173.06,1.24804603]
[1641025345477,4.09540112,173.09,173.05,31.526]
[1641025346277,27.66479,173.13,173.05,31.526]
[1641025346478,27.66479,173.13,173.06,1.24804502]
[1641025347180,4.09535533,173.09,173.05,37.978]
[1641025347880,27.66479,173.13,173.06,1.24805041]
[1641025348779,30.1704,173.15,173.05,37.978]
[1641025348980,4.10184179,173.1,173.06,18.32184548]
[1641025349784,30.1704,173.15,173.06,19.57204647]
[1641025350382,4.10181743,173.1,173.06,19.57204647]
[1641025350980,4.10195706,173.09,173.06,1.25020099]
[1641025351983,6.384,173.11,173.06,1.25020099]
[1641025352684,4.10189463,173.1,173.06,19.5720676]
[1641025353287,37.04879,173.11,173.06,19.5720676]
[1641025353487,3.0,173.1,173.02,19.5720676]
[1641025353685,32.6296,173.1,173.02,19.5720676]
[1641025354385,4.10277992,173.06,173.02,19.5720676]
[1641025354886,32.6296,173.1,173.02,19.5720676]
[1641025355085,4.10259745,173.07,173.03,12.25342374]
[1641025355786,32.6296,173.1,173.03,12.25342374]
[1641025356587,4.10266258,173.07,173.03,12.25342374]
[1641025357285,4.10268383,173.06,173.02,19.5720676]
[1641025358086,4.10308019,173.05,173.02,1.25020099]
[1641025358688,27.66479,173.07,173.01,4.0]
[1641025359990,4.10036895,173.05,173.02,1.24924389]
[1641025360389,4.10036895,173.05,173.01,4.0]
[1641025360793,27.66479,173.07,173.01,4.0]
[1641025360990,4.10023154,173.06,173.01,16.25342374]
[1641025361693,27.66479,173.07,173.01,16.25342374]
[1641025361890,32.50979,173.07,173.02,1.2492588]
[1641025362498,4.10046743,173.05,173.02,1.2492588]
[1641025363293,32.50979,173.07,173.01,4.0]
[1641025363493,27.66479,173.07,173.01,4.0]
[1641025363994,4.10048648,173.05,173.02,1.24923213]
[1641025364594,27.66479,173.07,173.01,4.0]
[1641025364794,6.447,173.06,173.01,4.0]
[1641025365296,4.10047664,173.05,173.02,1.24923312]
[1641025365898,6.447,173.06,173.01,4.0]
[1641025366597,4.10046926,173.05,173.02,1.24923385]
[1641025367299,27.66479,173.07,173.01,4.0]
[1641025367700,27.66479,173.07,173.0,18.32186661]
[1641025368101,4.10061684,173.04,173.02,1.2492191]
[1641025368801,31.76540684,173.04,173.02,1.2492191]
[1641025369402,27.66479,173.04,172.99,42.71892374]
[1641025369604,27.66479,173.04,173.0,1.25002469]
[1641025370105,4.10356592,173.02,172.98,16.25342374]
[1641025370807,6.704,173.02,172.99,1.25001004]
[1641025371407,6.704,173.02,172.98,16.25342374]
[1641025371608,4.10399982,173.01,172.98,4.0]
[1641025372208,6.704,173.02,172.99,1.24998133]
[1641025373008,4.10399323,173.01,172.98,4.0]
[1641025373509,27.66479,173.04,172.99,1.24998313]
[1641025374108,29.9757,173.06,172.99,1.24998313]
[1641025374308,4.10396471,173.01,172.98,4.0]
[1641025374908,27.66479,173.04,172.99,1.24999746]
[1641025375511,4.1037879,173.01,172.98,4.0]
[1641025376112,27.66479,173.04,172.99,1.25000758]
[1641025376811,27.66479,173.04,172.98,4.0]
[1641025376812,27.66479,173.01,172.98,4.0]
[1641025377713,21.62268597,173.01,172.98,4.0]
[1641025378113,31.75520695,173.04,172.98,4.0]
[1641025378314,34.75520695,173.04,172.95,12.25342374]
[1641025378514,3.0,173.0,172.95,12.25342374]
[1641025378716,30.66479,172.97,172.95,12.25342374]
[1641025378915,3.0,172.96,172.95,12.25342374]
[1641025379114,9.367,172.96,172.94,89.0]
[1641025379315,9.367,172.96,172.88,27.66479]
[1641025380317,4.09041695,172.95,172.88,27.66479]
[1641025387324,9.19541695,172.95,172.88,27.66479]
[1641025387526,9.19541695,172.95,172.84,42.17827506]
[1641025387726,39.40031695,172.95,172.84,42.17827506]
[1641025388328,39.40031695,172.95,172.86,6.04719407]
[1641025388926,39.40031695,172.95,172.88,4.0]
[1641025389128,4.09041695,172.93,172.88,4.0]
[1641025390328,4.09041695,172.93,172.91,4.0]
[1641025390531,4.09041695,172.93,172.91,4.41]
[1641025391130,34.29531695,172.95,172.91,4.41]
[1641025391331,4.09041695,172.95,172.91,4.41]
[1641025391530,4.09041695,172.95,172.89,27.66479]
[1641025391731,4.09041695,172.95,172.9,6.04719407]
[1641025392431,4.09041695,172.94,172.87,32.8246936]
[1641025392631,4.09041695,172.94,172.86,69.40818767]
[1641025393434,4.09041695,172.92,172.87,6.04719407]
[1641025393933,4.09041695,172.92,172.86,30.5363]
[1641025394136,5.877,172.95,172.86,30.5363]
[1641025394835,27.66479,172.94,172.86,30.5363]
[1641025400740,29.528,172.96,172.86,30.5363]
[1641025403446,3.0,172.95,172.86,30.5363]
[1641025403846,32.528,172.96,172.86,30.5363]
[1641025405348,32.528,172.96,172.88,4.0]
[1641025406549,4.09041695,172.93,172.89,1.24867097]
[1641025408150,4.09041695,172.94,172.89,1.24867097]
[1641025408550,4.09041695,172.93,172.89,1.24867097]
[1641025408749,11.00841695,172.93,172.89,1.24867097]
[1641025409454,4.09041695,172.92,172.89,1.24867097]
[1641025410853,4.09041695,172.92,172.88,12.31733367]
[1641025414363,4.09041695,172.92,172.9,4.0]
[1641025414563,27.66479,172.97,172.9,4.0]
[1641025414964,27.66479,172.97,172.9,31.66479]
[1641025415563,27.66479,172.97,172.9,27.66479]
[1641025415964,27.66479,172.97,172.92,12.31733367]
[1641025416764,27.66479,172.97,172.92,1.24867097]
[1641025420272,27.66479,172.99,172.93,4.0]
[1641025420472,34.7511,173.02,172.93,4.0]
[1641025421070,34.7511,173.02,172.94,1.24867097]
[1641025421472,3.0,173.01,172.94,1.24867097]
[1641025421772,5.664,173.01,172.94,1.24867097]
[1641025421970,5.664,173.01,172.92,1.24867097]
[1641025422371,8.664,173.01,172.92,1.24867097]
[1641025423173,27.66479,172.99,172.92,1.24867097]
[1641025423773,10.35328793,173.01,172.92,1.24867097]
[1641025424174,34.7511,173.02,172.92,1.24867097]
[1641025424575,31.7511,173.02,172.92,1.24867097]
[1641025424974,10.35224694,173.01,172.92,19.63327375]
[1641025425175,38.01703694,173.01,172.92,19.63327375]
[1641025426577,27.66479,173.01,172.92,19.63327375]
[1641025428779,27.66479,173.01,172.92,13.56600464]
[1641025428979,10.35340034,173.0,172.92,1.24867097]
[1641025429179,3.0,172.99,172.92,1.24867097]
[1641025430979,14.87740034,173.0,172.92,1.24867097]
[1641025431180,27.66479,172.96,172.92,1.24867097]
[1641025437990,21.66330271,172.96,172.92,1.24867097]
[1641025438294,21.66330271,172.96,172.91,44.15983367]
[1641025440099,21.66330271,172.96,172.92,1.24859366]
[1641025440800,4.293,172.99,172.92,1.24859366]
[1641025441300,3.0,172.96,172.92,1.24859366]
[1641025441697,30.5092,172.98,172.92,1.24859366]
[1641025441698,27.66479,172.94,172.92,1.24859366]
[1641025441898,34.13579,172.94,172.91,12.31733367]
[1641025442100,34.13579,172.94,172.87,133.87463367]
[1641025442299,34.13579,172.94,172.87,44.87463367]
[1641025443202,34.13579,172.94,172.88,1.24813967]
[1641025447500,6.471,172.94,172.88,1.24813967]
[1641025447699,66.36856813,172.98,172.89,27.66479]
[1641025448404,33.5092,172.98,172.89,39.98212367]
[1641025449202,33.5092,172.98,172.9,1.24813967]
[1641025449801,61.17399,172.98,172.9,1.24813967]
[1641025450201,3.0,172.97,172.9,1.24813967]
[1641025450601,61.17399,172.98,172.9,1.24813967]
[1641025451104,10.35657648,172.97,172.9,1.24813967]
[1641025455709,10.35657648,172.97,172.9,5.24813967]
[1641025456111,10.35657648,172.97,172.9,1.24813967]
[1641025457811,10.35657648,172.97,172.88,13.56547334]
[1641025458012,10.35657648,172.97,172.88,19.63212312]
[1641025458512,10.35657648,172.97,172.88,1.24813967]
[1641025459213,10.35657648,172.97,172.88,19.63213634]
[1641025461015,61.17399,172.98,172.88,19.63213634]
[1641025461216,61.17399,172.98,172.89,12.31733367]
[1641025462215,10.35617374,172.97,172.89,12.31733367]
[1641025462816,61.17399,172.98,172.89,12.31733367]
[1641025465620,58.17399,172.98,172.89,12.31733367]
[1641025466020,61.17399,172.98,172.89,12.31733367]
[1641025466219,58.17399,172.98,172.89,12.31733367]
[1641025467221,61.17399,172.98,172.89,12.31733367]
[1641025467425,10.35700656,172.97,172.88,19.63213634]
[1641025471126,10.35700656,172.97,172.89,12.31733367]
[1641025474232,58.17399,172.98,172.9,4.0]
[1641025474434,27.66479,172.98,172.9,4.0]
[1641025474634,27.66479,172.98,172.93,4.0]
[1641025474832,32.85936813,173.0,172.93,9.097]
[1641025475032,4.10485937,172.97,172.94,1.24813967]
[1641025476036,4.10485937,172.97,172.94,28.91292967]
[1641025476434,4.10485937,172.97,172.94,1.24813967]
[1641025477234,33.1225,173.04,172.95,1.24813967]
[1641025477235,4.10485937,172.98,172.95,1.24813967]
[1641025478034,4.10485937,172.97,172.94,1.24813967]
[1641025479339,4.10485937,172.96,172.94,1.24813967]
[1641025481141,4.10485937,172.97,172.94,1.24813967]
[1641025483445,4.10485937,172.96,172.94,1.24813967]
[1641025484347,4.10485937,172.97,172.94,1.24813967]
[1641025499364,27.66479,173.02,172.93,71.64691367]
[1641025499565,33.29279,173.02,172.93,67.64691367]
[1641025500164,4.10485453,172.97,172.94,1.24863352]
[1641025500766,33.29279,173.02,172.93,67.64691367]
[1641025501466,4.10488439,172.96,172.94,1.24863053]
[1641025502167,32.2102,173.0,172.93,55.32958]
[1641025502368,32.2102,173.0,172.93,59.32958]
[1641025502768,4.10491174,172.96,172.94,1.2486278]
[1641025503269,32.2102,173.0,172.93,59.32958]
[1641025503470,4.10482253,172.97,172.93,71.64691367]
[1641025504272,32.2102,173.0,172.94,1.24863721]
[1641025505173,27.66479,173.02,172.97,4.0]
[1641025505372,4.10444327,172.99,172.97,9.637]
[1641025506275,4.10404647,173.0,172.98,1.24871432]
[1641025506675,4.10404647,173.0,172.99,27.66479]
[1641025507075,32.767,173.07,172.99,27.66479]
[1641025507275,4.08567523,173.04,172.99,27.66479]
[1641025508078,32.767,173.07,172.99,27.66479]
[1641025508277,32.767,173.07,172.99,21.09848232]
[1641025508685,4.08577837,173.03,172.99,21.09848232]
[1641025509984,4.08577837,173.04,172.99,21.09848232]
[1641025510585,4.08577837,173.04,173.0,4.0]
[1641025510786,4.08577837,173.01,173.0,5.24872581]
[1641025510987,4.08577837,173.01,173.0,10.85572581]
[1641025511786,4.08577837,173.03,173.0,10.85572581]
[1641025511986,4.08577837,173.03,173.0,5.24872581]
[1641025512387,4.08577837,173.01,173.0,4.0]
[1641025513287,4.08577837,173.02,173.0,4.0]
[1641025513888,4.08577837,173.01,173.0,4.0]
[1641025514789,4.08577837,173.02,173.0,4.0]
[1641025515391,4.08577837,173.02,172.99,21.09848232]
[1641025515792,4.08577837,173.02,173.0,4.0]
[1641025515990,4.08577837,173.01,173.0,4.0]
[1641025517794,4.08577837,173.02,172.98,39.98212367]
[1641025517995,4.08577837,173.02,172.98,43.98212367]
[1641025518698,4.08577837,173.01,172.98,59.32958]
[1641025519398,4.08577837,173.02,172.98,71.64691367]
[1641025519699,4.08577837,173.02,173.01,4.0]
[1641025520599,10.34774796,173.06,173.01,4.0]
[1641025521400,4.10358349,173.02,173.01,4.0]
[1641025521602,10.22658349,173.02,172.98,67.64691367]
[1641025522902,4.10358349,173.0,172.98,55.32958]
[1641025524102,4.10358349,173.03,172.99,18.38411103]
[1641025524903,4.10358349,173.02,172.98,67.64691367]
[1641025525303,4.10358349,173.02,173.0,4.0]
[1641025528212,4.10358349,173.02,173.01,1.24916617]
[1641025532113,4.10358349,173.03,173.01,1.24916617]
[1641025533513,4.10358349,173.06,173.01,1.24916617]
[1641025534113,4.10358349,173.05,172.99,1.24916617]
[1641025534916,4.10358349,173.04,172.99,1.24916617]
[1641025535714,4.10358349,173.03,172.98,1.24916617]
[1641025536917,4.10358349,173.02,172.98,19.63339351]
[1641025537516,4.10358349,173.0,172.98,1.24916617]
[1641025538918,4.10358349,172.99,172.98,1.24916617]
[1641025540419,5.372,173.02,172.98,1.24916617]
[1641025540621,30.2217,173.03,172.96,1.24916617]
[1641025541320,4.10444222,172.98,172.96,1.24916617]
[1641025546025,30.2217,173.03,172.96,1.24916617]
[1641025546026,4.10444222,172.99,172.96,1.24916617]
[1641025547530,4.10444222,172.99,172.96,5.24916617]
[1641025547731,4.10444222,172.99,172.96,1.24916617]
[1641025548533,4.10444222,172.98,172.96,1.24916617]
[1641025548733,10.02944222,172.98,172.96,1.24916617]
[1641025549334,4.10444222,172.97,172.95,1.24916617]
[1641025550440,4.10444222,172.97,172.94,5.24916617]
[1641025551039,4.10444222,172.97,172.95,1.24916617]
[1641025552442,4.10444222,172.99,172.95,13.56649984]
[1641025552643,4.10444222,172.99,172.95,45.72419984]
[1641025552842,4.10444222,172.99,172.97,4.0]
[1641025553945,4.10444222,173.0,172.98,1.24916617]
[1641025555045,4.10444222,173.0,172.98,6.66316617]
[1641025555550,4.10444222,173.01,172.98,6.66316617]
[1641025555745,4.10444222,173.01,173.0,4.0]
[1641025556846,34.32614222,173.03,173.0,4.0]
[1641025557046,4.10444222,173.03,173.0,31.66479]
[1641025557448,4.10444222,173.03,173.0,38.40179]
[1641025561454,4.10444222,173.03,173.0,6.737]
[1641025561655,4.10444222,173.03,172.97,4.0]
[1641025562657,4.10444222,173.02,172.98,1.24623203]
[1641025563160,4.10444222,173.01,172.98,1.24623203]
[1641025569267,3.0,173.04,172.97,22.38431444]
[1641025569468,38.01333305,173.06,172.97,22.38431444]
[1641025569669,4.103946,173.01,172.98,1.24913476]
[1641025570471,9.347,173.05,172.97,22.38431444]
[1641025570672,6.347,173.05,172.97,22.38431444]
[1641025571073,4.10387859,173.01,172.98,1.24914151]
[1641025571771,3.0,173.05,172.97,22.38431444]
[1641025571971,3.0,173.06,172.97,22.38431444]
[1641025572172,3.0,173.05,172.97,22.38431444]
[1641025572975,4.10390411,173.01,172.98,1.24913895]
[1641025573475,38.01338859,173.06,172.97,22.38431444]
[1641025573873,41.01338859,173.06,172.97,22.38431444]
[1641025574175,30.66479,173.06,172.97,22.38431444]
[1641025574375,4.10391444,173.01,172.98,1.24913792]
[1641025574874,3.0,173.05,172.97,22.38431444]
[1641025575376,3.0,173.04,172.97,22.38431444]
[1641025575575,30.66479,173.06,172.97,22.38431444]
[1641025575776,4.10391456,173.01,172.98,1.24913791]
[1641025576477,30.66479,173.06,172.97,22.38431444]
[1641025576676,10.34884812,173.05,172.97,22.38431444]
[1641025577076,13.34884812,173.05,172.97,22.38431444]
[1641025577276,10.34884812,173.05,172.97,22.38431444]
[1641025577476,4.10397425,173.01,172.98,1.24913194]
[1641025578076,3.0,173.05,172.97,22.38431444]
[1641025578277,13.34884812,173.06,172.97,22.38431444]
[1641025578678,3.0,173.05,172.97,22.38431444]
[1641025579078,4.1039066,173.01,172.98,1.2491387]
[1641025579577,3.0,173.05,172.97,22.38431444]
[1641025580279,3.0,173.05,172.98,1.24913471]
[1641025580280,4.10394655,173.01,172.98,1.24913471]
[1641025580982,10.34884812,173.06,172.97,22.38431444]
[1641025581181,10.34884812,173.06,172.97,27.24731444]
[1641025581384,10.34884812,173.06,173.0,4.0]
[1641025581582,13.34884812,173.06,172.99,27.66479]
[1641025581783,4.10381137,173.01,172.99,27.66479]
[1641025583084,13.34884812,173.06,172.99,27.66479]
[1641025583283,4.10367193,173.02,173.0,1.24914823]
[1641025583988,3.0,173.06,172.99,27.66479]
[1641025584186,3.0,173.06,172.99,58.33789]
[1641025584387,3.0,173.06,172.99,30.6731]
[1641025584787,4.10194898,173.02,173.0,1.2486384]
[1641025585586,3.0,173.06,172.99,30.6731]
[1641025585787,61.84329,173.07,172.99,30.6731]
[1641025585988,3.0,173.06,172.99,30.6731]
[1641025586486,4.10369239,173.02,173.0,1.24916013]
[1641025586887,4.10369239,173.02,172.99,30.6731]
[1641025587088,4.10369239,173.02,172.97,4.0]
[1641025587089,5.272,173.02,172.97,16.31733367]
[1641025587890,5.272,173.02,172.98,1.24909092]
[1641025588689,5.272,173.02,172.97,4.0]
[1641025589290,13.34788096,173.06,172.97,31.66479]
[1641025589490,3.0,173.05,172.97,31.66479]
[1641025589694,3.0,173.05,172.98,1.24910434]
[1641025590393,3.0,173.05,172.97,4.0]
[1641025590594,13.34788096,173.06,172.97,4.0]
[1641025590996,10.34788096,173.06,173.0,4.0]
[1641025591193,10.34788096,173.06,172.95,18.3844454]
[1641025591194,10.34788096,173.06,172.99,5.624]
[1641025591394,10.34788096,173.06,172.99,36.7112]
[1641025591593,13.34788096,173.06,172.99,36.7112]
[1641025591794,3.0,173.06,173.0,1.2491716]
[1641025592400,3.0,173.06,172.98,39.98212367]
[1641025592696,3.0,173.04,172.98,39.98212367]
[1641025593297,3.0,173.04,172.99,1.24910899]
[1641025594097,3.0,173.04,172.98,27.66479]
[1641025594298,13.34972187,173.04,172.98,27.66479]
[1641025595400,10.34972187,173.04,173.01,4.0]
[1641025596402,13.34972187,173.04,173.01,4.0]
[1641025596603,35.85936813,173.06,173.01,4.0]
[1641025596803,3.0,173.06,173.01,4.0]
[1641025597502,13.34875309,173.06,173.01,4.0]
[1641025598802,13.34875309,173.06,172.98,25.09840665]
[1641025600006,3.0,173.06,172.98,25.09840665]
[1641025600206,3.0,173.06,172.99,1.24957646]
[1641025600908,13.33961648,173.06,172.99,1.24957646]
[1641025602408,3.0,173.05,172.99,5.24957646]
[1641025602609,4.1006193,173.02,172.99,5.24957646]
[1641025603211,4.1006193,173.02,173.0,1.24957646]
[1641025604009,34.1785,173.07,173.0,1.24957646]
[1641025604010,4.1006193,173.01,173.0,1.24957646]
[1641025612118,33.71179,173.03,172.99,4.0]
[1641025612916,4.10109196,173.0,172.99,4.0]
[1641025613721,33.71179,173.03,172.99,5.24952902]
[1641025614020,27.66479,173.03,172.99,5.24952902]
[1641025614519,27.66479,173.03,173.0,1.24952902]
[1641025617121,27.66479,173.03,172.99,4.0]
[1641025620427,30.5778,173.04,172.99,4.0]
[1641025621328,30.5778,173.04,173.0,1.24913939]
[1641025622031,30.5778,173.04,173.01,27.66479]
[1641025622232,3.0,173.07,173.01,27.66479]
[1641025622634,3.0,173.06,172.99,4.0]
[1641025622832,3.0,173.07,172.99,4.0]
[1641025623436,3.0,173.07,173.0,1.24914026]
[1641025623634,3.0,173.06,173.0,1.24914026]
[1641025629744,4.10207805,173.01,173.0,1.24914026]
[1641025634749,4.10207805,173.02,173.0,1.24914026]
[1641025644955,7.10207805,173.02,173.0,1.24914026]
[1641025645158,7.10207805,173.02,173.0,4.026e-05]
[1641025645355,3.0,173.01,172.98,12.31733367]
[1641025645557,3.0,172.99,172.98,3.367e-05]
[1641025645957,3.0,172.99,172.89,67.8835936]
[1641025646156,3.0,172.98,172.89,63.8835936]
[1641025646357,36.51179,172.98,172.89,60.4894836]
[1641025646956,4.10425799,172.94,172.89,27.66479]
[1641025647157,10.00525799,172.94,172.89,27.66479]
[1641025649158,4.10425799,172.93,172.89,27.66479]
[1641025649557,4.10425799,172.93,172.9,4.0]
[1641025649956,4.10425799,172.93,172.89,27.66479]
[1641025651060,6.119,172.95,172.89,27.66479]
[1641025656369,34.76904799,172.98,172.89,27.66479]
[1641025658776,31.76904799,172.98,172.89,27.66479]
[1641025658975,4.10425799,172.94,172.9,6.0664501]
[1641025659774,4.10555815,172.93,172.89,31.66479]
[1641025660375,32.6204,172.97,172.9,6.0664441]
[1641025660376,4.10549784,172.94,172.9,6.0664441]
[1641025661477,32.6204,172.97,172.9,6.0664441]
[1641025662076,4.1055582,172.93,172.89,31.66479]
[1641025662975,4.1054512,172.94,172.9,6.06642544]
[1641025663974,32.6204,172.97,172.9,6.06642544]
[1641025664676,4.10550026,172.94,172.9,6.06642544]
[1641025665076,32.6204,172.97,172.9,6.06642544]
[1641025665778,4.10540828,172.94,172.9,6.06642544]
[1641025666378,32.6204,172.97,172.9,6.06642544]
[1641025667278,4.10540614,172.94,172.9,6.06642544]
[1641025667978,38.0634,172.97,172.9,6.06642544]
[1641025668579,4.10538307,172.94,172.9,6.06642544]
[1641025669683,4.10529372,172.95,172.9,6.06642544]
[1641025670183,4.10509095,172.96,172.9,6.06642544]
[1641025670583,4.10509095,172.96,172.92,27.66479]
[1641025670985,32.6204,172.97,172.92,27.66479]
[1641025671586,4.10513552,172.95,172.92,27.66479]
[1641025672187,5.663,172.96,172.92,27.66479]
[1641025673693,4.10527163,172.95,172.92,27.66479]
[1641025674092,5.663,172.96,172.92,21.09626328]
[1641025674692,4.1018002,172.95,172.92,21.09626328]
[1641025675293,9.7648002,172.96,172.92,21.09626328]
[1641025680803,9.7648002,172.96,172.92,25.09626328]
[1641025681203,9.7648002,172.96,172.92,37.40124725]
[1641025682304,4.1018002,172.96,172.92,43.96424725]
[1641025682804,4.1018002,172.97,172.93,18.37227826]
[1641025685708,4.1018002,172.97,172.93,19.62129761]
[1641025686308,4.1018002,172.97,172.93,13.55400332]
[1641025686508,4.1018002,172.96,172.93,1.24901935]
[1641025689611,4.1018002,172.96,172.93,19.62127763]
[1641025690410,4.1018002,172.96,172.93,1.24901935]
[1641025691511,4.1018002,172.96,172.95,7.0]
[1641025691714,0.0001002,172.96,172.95,10.467]
[1641025692113,0.0001002,172.96,172.95,13.467]
[1641025692313,0.0001002,172.96,172.95,10.467]
[1641025692513,30.2192,173.03,172.95,10.467]
[1641025692715,30.2192,173.03,172.95,14.71601935]
[1641025692914,30.2192,173.03,172.98,27.66479]
[1641025693515,30.2192,173.03,172.98,31.66479]
[1641025693814,30.2192,173.03,172.99,1.24901935]
[1641025694615,3.0,173.07,172.99,1.24901935]
[1641025694814,33.7158,173.07,172.99,1.24901935]
[1641025695219,44.06486912,173.07,172.99,1.24901935]
[1641025695819,10.34906912,173.06,172.99,1.24901935]
[1641025698820,13.34906912,173.06,172.99,1.24901935]
[1641025699419,13.34906912,173.06,172.97,1.24901935]
[1641025699721,10.34906912,173.06,172.97,1.24901935]
[1641025700722,13.34906912,173.06,172.97,1.24901935]
[1641025700921,10.34906912,173.06,172.97,19.62845609]
[1641025702022,3.0,173.05,172.97,19.62845609]
[1641025702522,10.34906912,173.06,172.97,19.62845609]
[1641025704426,13.34906912,173.06,172.97,19.62845609]
[1641025707432,10.34906912,173.06,172.97,19.62845609]
[1641025708834,3.0,173.04,172.97,19.62845609]
[1641025709036,9.595,173.04,172.97,19.62845609]
[1641025709337,37.25979,173.04,172.97,19.62845609]
[1641025709536,37.25979,173.04,172.97,12.31184031]
[1641025709736,3.0,173.03,172.97,12.31184031]
[1641025709938,34.25979,173.04,172.97,12.31184031]
[1641025710137,37.25979,173.04,172.97,12.31184031]
[1641025710536,3.0,173.03,172.97,12.31184031]
[1641025710837,10.34978772,173.03,172.96,1.24901935]
[1641025711340,46.10818772,173.03,172.96,1.24901935]
[1641025711539,43.10818772,173.03,172.96,1.24901935]
[1641025712339,32.7584,173.03,172.95,19.62861358]
[1641025712940,32.7584,173.03,172.95,1.24901935]
[1641025713740,35.7584,173.03,172.95,1.24901935]
[1641025714043,32.7584,173.03,172.95,1.24901935]
[1641025714242,10.35105862,173.02,172.95,1.24901935]
[1641025716946,13.35105862,173.02,172.95,1.24901935]
[1641025717247,10.35105862,173.02,172.95,1.24901935]
[1641025717447,27.66479,173.0,172.95,1.24901935]
[1641025719252,27.66479,173.0,172.94,1.24901935]
[1641025724255,27.66479,173.0,172.93,1.24901935]
[1641025729560,30.66479,173.0,172.93,1.24901935]
[1641025734964,30.66479,173.0,172.92,39.47615614]
[1641025735664,30.66479,173.0,172.93,1.2492595]
[1641025736166,30.66479,173.0,172.92,39.47615614]
[1641025736464,27.66479,173.0,172.92,39.47615614]
[1641025736668,39.6234,173.03,172.94,4.0]
[1641025736669,32.7584,173.03,172.94,4.0]
[1641025736865,32.7584,173.03,172.94,13.107]
[1641025737067,32.85936813,173.04,172.98,4.0]
[1641025737266,32.85936813,173.04,172.98,8.779]
[1641025737970,32.85936813,173.04,172.99,27.66479]
[1641025738471,10.33807434,173.07,172.99,28.91293912]
[1641025739971,10.33807434,173.07,172.99,27.66479]
[1641025740172,10.33807434,173.07,173.0,1.24828159]
[1641025740772,10.33807434,173.07,172.99,27.66479]
[1641025741373,10.33807434,173.07,173.0,1.24826869]
[1641025742674,10.33807434,173.07,172.98,4.0]
[1641025743074,10.33807434,173.07,172.99,1.24825812]
[1641025743674,10.33807434,173.07,172.98,4.0]
[1641025744773,10.33807434,173.07,172.97,79.33673031]
[1641025744975,10.33807434,173.07,172.99,1.24937416]
[1641025745473,10.33807434,173.07,172.98,1.24935622]
[1641025746074,27.66479,173.05,172.97,67.02489]
[1641025747174,27.66479,173.05,172.98,1.24936482]
[1641025747776,27.66479,173.05,172.97,79.33673031]
[1641025748382,27.66479,173.05,172.98,1.24936923]
[1641025748878,27.66479,173.05,172.97,79.33673031]
[1641025749080,27.66479,173.05,172.98,5.482]
[1641025749379,27.66479,173.05,172.98,9.482]
[1641025749680,92.25205813,173.08,172.98,9.482]
[1641025750282,92.25205813,173.08,172.99,1.24940182]
[1641025750283,59.39269,173.08,172.99,1.24940182]
[1641025750881,10.34704512,173.07,172.99,1.24940182]
[1641025752582,4.10375787,173.01,172.98,1.24938296]
[1641025752983,10.34704512,173.07,172.98,1.24938296]
[1641025753587,4.10377158,173.01,172.98,1.24938296]
[1641025754490,10.34704512,173.07,172.98,1.24938296]
[1641025755190,4.10366681,173.02,172.98,19.62871333]
[1641025755791,4.10366681,173.02,172.99,4.0]
[1641025756192,10.34704512,173.07,173.0,27.66479]
[1641025756392,43.20641325,173.07,173.0,27.66479]
[1641025757293,32.85936813,173.07,172.97,30.8801]
[1641025757493,39.35936813,173.07,172.97,30.8801]
[1641025757693,6.5,173.07,172.97,30.8801]
[1641025758094,31.4419,173.06,172.97,30.8801]
[1641025758798,27.66479,173.11,172.99,4.0]
[1641025758995,32.5043,173.1,172.99,6.321]
[1641025759197,35.85936813,173.15,173.03,4.0]